bitfinex/quotes_ETHUSD_20250210
["timestamp","ask_amount","ask_price","bid_price","bid_amount"]
[1739159580839,3.79575,2634.6,2634.1,2.98037017]
[1739159581216,0.752,2635.1,2634.1,2.98037017]
[1739159581217,3.79596,2634.4,2634.1,0.8221]
[1739159581416,7.59145,2634.6,2634.1,0.8221]
[1739159581738,3.79568,2634.6,2634.1,2.98037017]
[1739159582039,3.79541,2634.8,2634.2,3.79621]
[1739159582201,3.7955,2634.7,2634.2,3.79621]
[1739159582544,0.752,2635.1,2634.4,5.95416017]
[1739159582743,0.19290832,2635.4,2634.4,5.95416017]
[1739159582744,0.94490832,2635.4,2634.4,5.95416017]
[1739159582918,3.79531,2634.9,2634.4,2.15827017]
[1739159583116,7.58967,2635.2,2634.5,3.79567]
[1739159583345,7.58967,2635.2,2634.6,0.8221]
[1739159583346,3.79478,2635.2,2634.6,0.8221]
[1739159583642,4.57127687,2635.2,2634.6,0.8221]
[1739159583827,3.79516,2635.0,2634.6,0.8221]
[1739159584414,8.36624687,2635.2,2634.6,0.8221]
[1739159584615,3.79486,2635.2,2634.7,2.15827017]
[1739159584838,3.79451,2635.4,2634.8,3.79534]
[1739159585162,3.79472,2635.3,2634.7,2.15827017]
[1739159585316,3.79487,2635.2,2634.7,2.15827017]
[1739159585522,4.53596459,2635.3,2634.7,2.15827017]
[1739159586353,8.33071459,2635.3,2634.7,2.15827017]
[1739159586558,4.53596459,2635.3,2634.7,5.95374017]
[1739159586870,3.79449,2635.4,2634.8,3.79532]
[1739159587069,3.79443,2635.5,2634.7,5.95374017]
[1739159587269,3.79463,2635.3,2634.8,3.79533]
[1739159587463,3.79498,2635.1,2634.7,2.15827017]
[1739159587620,3.79515,2635.0,2634.7,2.15827017]
[1739159587821,3.79516,2635.0,2634.7,2.15827017]
[1739159588032,3.79498,2635.1,2634.7,2.15827017]
[1739159588225,3.79468,2635.3,2634.7,2.15827017]
[1739159588445,0.75180883,2635.4,2635.0,5.95329017]
[1739159588771,0.75180883,2635.4,2635.1,0.7619]
[1739159589239,4.54630883,2635.4,2635.1,0.7619]
[1739159589439,0.75180883,2635.4,2635.1,0.7619]
[1739159590268,3.79411,2635.7,2635.3,2.15827017]
[1739159590465,3.79398,2635.8,2635.3,5.95289017]
[1739159590652,7.58768,2635.9,2635.3,5.95289017]
[1739159590833,3.79406,2635.7,2635.3,2.15827017]
[1739159591475,0.8011,2636.2,2635.3,2.15827017]
[1739159591673,3.79356,2636.1,2635.7,0.7619]
[1739159591834,3.79365,2636.0,2635.6,2.15827017]
[1739159592169,0.8011,2636.5,2635.4,4.55628]
[1739159592170,3.79299,2636.5,2635.9,5.95198017]
[1739159592396,3.79285,2636.6,2635.9,5.95198017]
[1739159592694,3.79296,2636.5,2635.9,5.95198017]
[1739159592826,0.77803098,2636.5,2635.9,2.15827017]
[1739159593027,0.77803098,2636.5,2635.9,5.95195017]
[1739159593228,3.79316,2636.4,2635.9,2.15827017]
[1739159593542,3.79402,2635.8,2635.5,2.92017017]
[1739159593747,3.79362,2636.0,2635.5,0.7619]
[1739159593958,3.79382,2635.9,2635.5,0.7619]
[1739159594156,3.79382,2635.9,2635.5,2.92017017]
[1739159594475,3.79392,2635.8,2635.5,2.92017017]
[1739159594992,3.79354,2636.1,2635.5,2.92017017]
[1739159595607,3.79394,2635.8,2635.5,2.92017017]
[1739159595814,3.79394,2635.8,2635.1,3.79485]
[1739159595815,0.8011,2636.2,2635.2,0.7619]
[1739159596106,3.79446,2635.5,2634.9,2.92017017]
[1739159596312,3.79452,2635.4,2634.9,2.92017017]
[1739159596519,3.79446,2635.5,2634.9,2.92017017]
[1739159596676,3.7945,2635.4,2634.9,2.92017017]
[1739159597377,3.79446,2635.5,2634.9,6.71535017]
[1739159597707,7.58894,2635.5,2634.9,6.71535017]
[1739159597911,3.79446,2635.5,2635.0,3.79505]
[1739159598077,0.77370099,2635.9,2635.2,2.15827017]
[1739159598282,3.79446,2635.5,2635.2,2.15827017]
[1739159598478,3.79446,2635.5,2634.9,6.71535017]
[1739159599413,3.79446,2635.5,2634.9,10.51045017]
[1739159599568,3.79446,2635.5,2635.0,3.79502]
[1739159600081,3.79411,2635.7,2635.0,3.79502]
[1739159600291,4.56757099,2635.9,2635.3,4.55651]
[1739159600512,3.79353,2636.1,2635.3,4.5564]
[1739159600513,7.5871,2636.1,2635.3,4.5564]
[1739159600812,7.5871,2636.1,2635.5,2.15827017]
[1739159600813,3.79353,2636.1,2635.5,2.15827017]
[1739159600963,3.79381,2635.9,2635.5,2.15827017]
[1739159601412,3.7942,2635.6,2635.3,0.7619]
[1739159602314,7.58743,2636.0,2635.3,0.7619]
[1739159602514,3.79379,2635.9,2635.3,4.55642]
[1739159603012,3.79369,2636.0,2635.4,3.79444]
[1739159603317,3.79369,2636.0,2635.3,4.55642]
[1739159603515,3.79379,2635.9,2635.3,4.55642]
[1739159603721,0.8011,2636.7,2635.8,2.15827017]
[1739159604019,3.79175,2637.3,2635.8,2.15827017]
[1739159604020,3.0,2636.8,2636.0,0.7619]
[1739159604214,3.7933,2636.3,2636.0,0.7619]
[1739159604412,3.79343,2636.2,2636.0,0.7619]
[1739159604577,3.7933,2636.3,2635.8,2.15827017]
[1739159604774,7.58659,2636.3,2635.8,2.15827017]
[1739159604977,3.79329,2636.3,2635.8,2.15827017]
[1739159606301,3.79334,2636.2,2635.8,2.15827017]
[1739159606710,3.79329,2636.3,2635.8,2.15827017]
[1739159608636,8.3509713,2636.5,2635.8,5.95209017]
[1739159608790,3.79298,2636.5,2636.0,0.7619]
[1739159609129,7.586,2636.5,2636.0,0.7619]
[1739159609327,3.79326,2636.3,2636.0,0.7619]
[1739159609936,3.79334,2636.2,2636.0,0.7619]
[1739159610536,3.79348,2636.1,2636.0,0.7619]
[1739159610737,7.58679,2636.2,2636.0,0.7619]
[1739159610934,3.79391,2635.8,2635.7,0.7619]
[1739159611231,3.79428,2635.6,2635.3,0.7619]
[1739159611609,3.79395,2635.8,2635.3,0.7619]
[1739159612596,3.79395,2635.8,2635.3,4.55651]
[1739159612891,0.76296388,2635.8,2635.3,4.55641]
[1739159613808,4.55688388,2635.8,2635.3,4.55641]
[1739159614144,3.79365,2636.0,2635.4,3.79448]
[1739159614348,3.7939,2635.9,2635.3,4.55647]
[1739159614752,3.79397,2635.8,2635.3,0.7619]
[1739159615239,3.79411,2635.7,2635.3,0.7619]
[1739159615655,3.79411,2635.7,2635.3,2.61667408]
[1739159615949,3.79422,2635.6,2635.3,2.61667408]
[1739159616157,3.79397,2635.8,2635.3,2.61667408]
[1739159616338,3.79335,2636.2,2635.6,1.85477408]
[1739159616507,3.79335,2636.2,2635.6,5.64897408]
[1739159616831,4.54249532,2636.2,2635.6,5.64897408]
[1739159617013,4.54249532,2636.2,2635.7,0.7515]
[1739159617213,4.54249532,2636.2,2635.7,4.54551]
[1739159617451,3.79308,2636.4,2635.9,1.85477408]
[1739159617907,3.79334,2636.2,2635.9,1.85477408]
[1739159618558,0.75985717,2636.3,2635.9,1.85477408]
[1739159620267,0.74420724,2636.5,2635.9,1.85477408]
[1739159620421,3.79267,2636.7,2636.2,1.85477408]
[1739159620620,3.79285,2636.6,2636.2,1.85477408]
[1739159621259,3.79267,2636.7,2636.2,1.85477408]
[1739159621448,3.79277,2636.6,2636.2,1.85477408]
[1739159621658,3.79277,2636.6,2636.0,5.95041878]
[1739159621865,3.79256,2636.8,2636.3,3.79314]
[1739159622053,7.58512,2636.8,2636.1,8.33826]
[1739159622255,3.79256,2636.8,2636.3,2.15693878]
[1739159622634,7.58514,2636.8,2636.3,2.15693878]
[1739159622839,3.79256,2636.8,2636.3,2.15693878]
[1739159623343,3.79206,2637.1,2636.5,3.79281]
[1739159623537,3.79206,2637.1,2636.6,0.7793]
[1739159623772,3.79202,2637.2,2636.6,2.93623878]
[1739159624077,4.55589305,2637.2,2636.6,2.93623878]
[1739159624233,3.79207,2637.1,2636.6,2.93623878]
[1739159624437,3.79227,2637.0,2636.6,2.93623878]
[1739159624979,3.79227,2637.0,2636.6,0.7793]
[1739159625150,3.79233,2636.9,2636.6,0.7793]
[1739159625350,3.79227,2637.0,2636.6,0.7793]
[1739159625557,3.79285,2636.6,2636.3,0.7793]
[1739159625848,3.79283,2636.6,2636.3,0.7793]
[1739159626053,3.79292,2636.5,2636.3,0.7793]
[1739159626438,0.7678,2637.0,2636.0,2.15693878]
[1739159626439,3.79315,2636.4,2636.0,2.93623878]
[1739159626636,3.79294,2636.5,2636.0,2.93623878]
[1739159627439,3.79282,2636.6,2636.0,2.93623878]
[1739159627689,3.79318,2636.4,2636.0,2.93623878]
[1739159627866,3.79321,2636.3,2636.0,2.93623878]
[1739159630144,3.79348,2636.1,2635.7,2.93623878]
[1739159630473,3.79364,2636.0,2635.7,2.93623878]
[1739159631258,3.79308,2636.4,2635.9,3.79371]
[1739159631444,0.8328,2636.8,2636.0,2.15693878]
[1739159631669,0.8328,2636.2,2635.4,2.15693878]
[1739159631873,0.8328,2636.2,2635.5,0.8195]
[1739159631874,3.79396,2635.8,2635.5,0.8195]
[1739159632243,3.79364,2636.0,2635.5,0.8195]
[1739159632644,3.79404,2635.8,2635.5,0.8195]
[1739159633080,7.58807,2635.8,2635.5,0.8195]
[1739159633458,3.79406,2635.7,2635.5,0.8195]
[1739159633868,3.7942,2635.6,2635.5,0.8195]
[1739159634260,3.79406,2635.7,2635.5,0.8195]
[1739159637194,3.7942,2635.6,2635.5,0.8195]
[1739159637350,3.79443,2635.5,2635.1,2.15693878]
[1739159637556,3.79472,2635.3,2635.1,2.15693878]
[1739159638275,3.79472,2635.3,2635.0,0.8195]
[1739159638487,3.79508,2635.0,2634.8,2.15693878]
[1739159638860,3.79495,2635.1,2634.6,0.8195]
[1739159639691,3.79521,2634.9,2634.6,0.8195]
[1739159639907,7.59056,2634.9,2634.6,0.8195]
[1739159640070,3.79521,2634.9,2634.6,0.8195]
[1739159640267,3.79543,2634.8,2634.6,0.8195]
[1739159640467,3.79552,2634.7,2634.3,0.8195]
[1739159641796,3.79516,2635.0,2634.5,2.15693878]
[1739159642405,3.79497,2635.1,2634.6,3.79562]
[1739159642565,3.79497,2635.1,2634.7,0.8195]
[1739159642763,3.79479,2635.2,2634.7,0.8195]
[1739159642979,3.79495,2635.1,2634.7,0.8195]
[1739159643178,3.79507,2635.0,2634.7,0.8195]
[1739159643674,3.79507,2635.0,2634.7,2.67517302]
[1739159644614,3.79448,2635.5,2634.8,3.79524]
[1739159644798,3.79448,2635.5,2635.0,1.85567302]
[1739159644984,0.8328,2635.6,2635.0,1.85567302]
[1739159645190,3.79474,2635.3,2635.0,1.85567302]
[1739159645508,3.79434,2635.5,2635.0,1.85567302]
[1739159645714,3.79466,2635.3,2635.0,1.85567302]
[1739159647989,4.56788401,2635.5,2635.0,1.85567302]
[1739159647990,3.7944,2635.5,2635.0,1.85567302]
[1739159648185,7.58888,2635.5,2635.0,1.85567302]
[1739159648390,3.79449,2635.4,2635.0,1.85567302]
[1739159648718,0.74802296,2635.6,2635.0,1.85567302]
[1739159648888,3.79492,2635.1,2635.0,1.85567302]
[1739159649291,3.79479,2635.2,2635.0,1.85567302]
[1739159649892,3.79476,2635.3,2635.0,1.85567302]
[1739159650117,3.79492,2635.1,2635.0,1.85567302]
[1739159650323,3.79478,2635.2,2634.7,2.67517302]
[1739159650521,3.79508,2635.0,2634.7,2.67517302]
[1739159651128,3.79521,2634.9,2634.7,2.67517302]
[1739159651481,3.79508,2635.0,2634.7,2.67517302]
[1739159652619,3.79508,2635.0,2634.5,0.7531]
[1739159652620,3.79535,2634.8,2634.5,0.7531]
[1739159653705,3.79508,2635.0,2634.7,1.85567302]
[1739159654728,0.77705616,2635.2,2634.7,5.65105302]
[1739159654929,0.77705616,2635.2,2634.7,1.85567302]
[1739159655223,3.79496,2635.1,2634.7,1.85567302]
[1739159655559,0.77705616,2635.2,2634.7,1.85567302]
[1739159656055,3.79535,2634.8,2634.7,1.85567302]
[1739159656260,3.79535,2634.8,2634.5,0.7531]
[1739159656560,3.79574,2634.6,2634.4,1.85567302]
[1739159657069,7.59148,2634.6,2634.4,1.85567302]
[1739159657216,3.79609,2634.3,2634.1,1.85567302]
[1739159657423,3.79621,2634.2,2634.1,1.85567302]
[1739159657732,3.79609,2634.3,2633.9,0.7531]
[1739159660167,4.54254868,2634.3,2633.9,0.7531]
[1739159660487,3.79555,2634.7,2634.1,5.65194302]
[1739159660638,3.79555,2634.7,2634.4,1.85567302]
[1739159661026,0.75634052,2634.6,2634.1,1.85567302]
[1739159661222,0.75634052,2634.6,2633.9,0.7531]
[1739159661223,3.79621,2634.2,2633.9,0.7531]
[1739159661921,3.79597,2634.4,2633.9,0.7531]
[1739159662128,3.79597,2634.4,2634.1,1.85567302]
[1739159662129,3.7961,2634.3,2634.1,1.85567302]
[1739159662649,3.7961,2634.3,2633.8,1.85567302]
[1739159662864,3.7964,2634.1,2633.8,1.85567302]
[1739159664192,3.79665,2633.9,2633.8,1.85567302]
[1739159665119,3.79665,2633.9,2633.5,1.85567302]
[1739159665359,3.79703,2633.7,2633.5,1.85567302]
[1739159665934,3.79708,2633.6,2633.5,1.85567302]
[1739159666149,3.79708,2633.6,2633.2,1.85567302]
[1739159666352,3.79724,2633.5,2633.2,1.85567302]
[1739159667291,3.79751,2633.3,2633.2,1.85567302]
[1739159667848,3.79724,2633.5,2633.2,1.85567302]
[1739159668164,0.75794322,2633.6,2633.2,1.85567302]
[1739159668473,4.55503322,2633.6,2633.2,1.85567302]
[1739159669787,0.8258,2633.9,2633.5,1.85567302]
[1739159669788,3.79669,2633.9,2633.5,1.85567302]
[1739159669994,3.79669,2633.9,2633.5,2.60877302]
[1739159670288,3.79669,2633.9,2633.5,1.85567302]
[1739159670783,4.55478528,2633.9,2633.5,1.85567302]
[1739159671084,3.79733,2633.5,2633.2,1.85567302]
[1739159671794,3.79737,2633.4,2632.9,1.85567302]
[1739159671949,3.79774,2633.2,2632.9,1.85567302]
[1739159672144,0.8258,2633.6,2632.9,1.85567302]
[1739159672352,3.79774,2633.2,2632.9,1.85567302]
[1739159672546,7.59551,2633.2,2632.9,1.85567302]
[1739159672766,3.79774,2633.2,2632.9,1.85567302]
[1739159673182,3.79794,2633.0,2632.9,1.85567302]
[1739159673567,3.79781,2633.1,2632.9,1.85567302]
[1739159674708,3.79774,2633.2,2632.9,1.85567302]
[1739159675196,4.56119763,2633.4,2632.9,1.85567302]
[1739159675412,3.79754,2633.3,2632.9,1.85567302]
[1739159675591,4.56119763,2633.4,2632.9,1.85567302]
[1739159675787,0.8258,2634.0,2633.2,1.85567302]
[1739159675955,3.79691,2633.8,2633.5,1.85567302]
[1739159676158,3.79708,2633.6,2633.5,1.85567302]
[1739159676405,3.79727,2633.5,2633.2,1.85567302]
[1739159676963,3.7967,2633.9,2633.2,1.85567302]
[1739159677296,3.79702,2633.7,2633.2,5.65333302]
[1739159677501,0.763,2634.7,2633.5,1.85567302]
[1739159677690,3.79646,2634.1,2633.8,1.85567302]
[1739159678098,0.77653509,2634.0,2633.8,1.85567302]
[1739159678904,4.55858,2634.7,2633.8,5.65235302]
[1739159679101,3.79605,2634.4,2634.1,1.85567302]
[1739159679297,3.7961,2634.3,2633.8,1.85567302]
[1739159679464,3.7966,2634.0,2633.8,1.85567302]
[1739159679660,3.79665,2633.9,2633.8,1.85567302]
[1739159679900,3.7966,2634.0,2633.8,1.85567302]
[1739159680285,8.35558,2634.2,2633.8,1.85567302]
[1739159680513,3.79638,2634.1,2633.8,1.85567302]
[1739159680690,1.53025622,2634.4,2633.8,1.85567302]
[1739159680691,4.56325622,2634.4,2633.8,1.85567302]
[1739159680879,3.7957,2634.6,2634.1,1.85567302]
[1739159681400,3.7957,2634.6,2634.2,0.7677]
[1739159681918,3.7958,2634.5,2634.2,0.7677]
[1739159682781,0.75952831,2634.5,2634.2,0.7677]
[1739159683912,4.55536831,2634.5,2634.2,0.7677]
[1739159684083,3.79595,2634.4,2634.1,1.85567302]
[1739159684296,3.79607,2634.3,2633.9,0.7677]
[1739159684479,3.79644,2634.1,2633.8,1.85567302]
[1739159684811,3.79705,2633.7,2633.5,1.85567302]
[1739159685105,3.79679,2633.8,2633.5,1.85567302]
[1739159685298,3.79708,2633.6,2633.5,1.85567302]
[1739159685529,3.79679,2633.8,2633.5,1.85567302]
[1739159685693,3.79653,2634.0,2633.5,1.85567302]
[1739159685895,3.79653,2634.0,2633.8,1.85567302]
[1739159686267,3.79653,2634.0,2633.5,1.85567302]
[1739159686268,3.79673,2633.9,2633.5,1.85567302]
[1739159686603,3.79683,2633.8,2633.5,1.85567302]
[1739159687008,3.79683,2633.8,2633.3,0.7677]
[1739159687009,0.75017676,2633.9,2633.3,0.7677]
[1739159687212,3.79747,2633.4,2633.2,1.85567302]
[1739159687368,3.79734,2633.5,2633.2,1.85567302]
[1739159689776,3.7972,2633.6,2633.2,1.85567302]
[1739159690321,3.7973,2633.5,2633.2,1.85567302]
[1739159690621,3.7972,2633.6,2633.2,1.85567302]
[1739159690800,7.5944,2633.6,2633.2,1.85567302]
[1739159691296,3.7972,2633.6,2633.2,1.85567302]
[1739159691878,3.79724,2633.5,2633.2,1.85567302]
[1739159692918,3.7972,2633.6,2633.2,1.85567302]
[1739159693126,3.79694,2633.7,2633.5,1.85567302]
[1739159693676,3.79687,2633.8,2633.5,1.85567302]
[1739159694076,3.79708,2633.6,2633.5,1.85567302]
[1739159696377,3.79694,2633.7,2633.5,1.85567302]
[1739159696579,3.79694,2633.7,2633.5,2.65567302]
[1739159697308,7.59399,2633.7,2633.5,2.65567302]
[1739159697511,3.7975,2633.4,2633.1,1.85567302]
[1739159697821,3.79748,2633.4,2633.1,1.85567302]
[1739159698125,3.79753,2633.3,2633.1,1.85567302]
[1739159698294,3.79794,2633.0,2632.9,0.8]
[1739159700419,3.7978,2633.1,2632.5,1.85567302]
[1739159700626,3.7984,2632.7,2632.5,1.85567302]
[1739159700984,3.79852,2632.6,2632.5,1.85567302]
[1739159701180,3.79895,2632.3,2632.2,2.65567302]
[1739159701417,8.3398279,2633.2,2632.2,2.65567302]
[1739159701418,3.79856,2632.6,2632.2,2.65567302]
[1739159701623,3.79868,2632.5,2632.2,2.65567302]
[1739159702918,4.55532562,2632.5,2632.2,2.65567302]
[1739159704084,0.75665562,2632.5,2632.2,2.65567302]
[1739159704307,4.55544562,2632.5,2632.2,2.65567302]
[1739159704526,3.79856,2632.6,2632.2,2.65567302]
[1739159704823,7.5805,2633.2,2632.5,1.85567302]
[1739159705027,7.5805,2633.2,2632.8,1.85567302]
[1739159705028,4.56813708,2633.0,2632.8,1.85567302]
[1739159705334,4.58053,2633.2,2632.8,1.85567302]
[1739159705628,3.79761,2633.3,2632.8,1.85567302]
[1739159705799,3.79768,2633.2,2632.8,1.85567302]
[1739159706002,3.79782,2633.1,2632.8,1.85567302]
[1739159706202,3.79804,2633.0,2632.8,1.85567302]
[1739159706540,0.7731,2633.1,2632.5,1.85567302]
[1739159706690,3.79852,2632.6,2632.5,1.85567302]
[1739159707087,3.79888,2632.4,2632.2,1.85567302]
[1739159708125,3.79895,2632.3,2632.2,1.85567302]
[1739159708429,3.7993,2632.1,2631.9,1.85567302]
[1739159710488,3.7991,2632.2,2631.9,1.85567302]
[1739159711429,7.59746,2632.5,2631.9,1.85567302]
[1739159711618,3.79842,2632.7,2632.2,1.85567302]
[1739159711813,3.79895,2632.3,2632.2,1.85567302]
[1739159712025,3.79939,2632.0,2631.6,1.99010933]
[1739159712327,3.8004,2631.3,2631.2,1.85567302]
[1739159712922,3.80034,2631.4,2631.2,1.85567302]
[1739159714337,3.8004,2631.3,2631.2,1.85567302]
[1739159714689,3.80078,2631.1,2630.9,1.85567302]
[1739159714929,3.80083,2631.0,2630.9,1.85567302]
[1739159715985,3.80078,2631.1,2630.5,0.757]
[1739159715986,3.80126,2630.7,2630.6,1.85567302]
[1739159716191,3.80126,2630.7,2630.3,1.85567302]
[1739159716396,0.7731,2631.2,2630.3,1.85567302]
[1739159716636,3.80166,2630.5,2630.3,1.85567302]
[1739159716933,3.8017,2630.4,2630.3,1.85567302]
[1739159717436,3.80186,2630.3,2630.0,2.61267302]
[1739159718434,3.80175,2630.4,2630.0,2.61267302]
[1739159718729,3.80175,2630.4,2630.3,1.85567302]
[1739159718730,3.80171,2630.4,2630.3,1.85567302]
[1739159719036,3.80159,2630.5,2630.3,1.85567302]
[1739159719615,3.80152,2630.6,2630.3,1.85567302]
[1739159719790,0.77401877,2630.7,2630.3,1.85567302]
[1739159719999,3.80117,2630.8,2630.6,1.85567302]
[1739159720330,3.80126,2630.7,2630.6,1.85567302]
[1739159721108,3.80117,2630.8,2630.6,1.85567302]
[1739159722013,3.80126,2630.7,2630.6,1.85567302]
[1739159722600,3.80117,2630.8,2630.6,1.85567302]
[1739159723025,3.80126,2630.7,2630.6,1.85567302]
[1739159723397,3.80117,2630.8,2630.6,1.85567302]
[1739159723597,0.77013803,2630.9,2630.6,1.85567302]
[1739159723804,3.80078,2631.1,2630.6,1.85567302]
[1739159724002,3.80126,2630.7,2630.6,1.85567302]
[1739159724410,3.80181,2630.4,2630.3,1.85567302]
[1739159724817,3.80155,2630.5,2630.3,1.85567302]
[1739159725318,3.8017,2630.4,2630.3,1.85567302]
[1739159725853,3.80213,2630.1,2630.0,1.85567302]
[1739159726144,3.80185,2630.3,2630.0,1.85567302]
[1739159726313,3.80199,2630.2,2630.0,1.85567302]
[1739159726838,3.80213,2630.1,2630.0,1.85567302]
[1739159727344,3.80257,2629.8,2629.7,2.00423182]
[1739159727530,3.80257,2629.8,2629.7,0.1485588]
[1739159728109,3.80382,2629.0,2628.8,1.87174352]
[1739159728336,3.80387,2628.9,2628.8,0.0160705]
[1739159728806,3.80387,2628.9,2628.2,1.85567302]
[1739159728807,0.7571,2628.9,2628.2,1.85567302]
[1739159729034,3.80498,2628.2,2627.9,1.85567302]
[1739159729349,3.80547,2627.8,2627.3,1.85567302]
[1739159729519,3.80563,2627.7,2627.3,1.85567302]
[1739159729704,0.7571,2628.3,2627.1,3.6027582]
[1739159729705,3.80488,2628.2,2627.1,3.6027582]
[1739159729904,3.80633,2627.2,2627.1,1.43097193]
[1739159730359,7.56343,2627.2,2627.1,1.43097193]
[1739159730505,7.56343,2627.2,2627.1,0.31907659]
[1739159730716,6.80647,2627.1,2627.0,0.1485588]
[1739159730957,6.80647,2627.1,2627.0,1e-08]
[1739159731163,6.80647,2627.1,2626.2,2.17178627]
[1739159731164,3.80724,2626.6,2626.2,2.17178627]
[1739159731367,3.80753,2626.4,2625.6,2.17178627]
[1739159731516,0.753233,2626.7,2625.9,2.17178627]
[1739159731715,3.80705,2626.8,2625.9,2.17178627]
[1739159731921,0.7571,2627.3,2626.5,2.95728627]
[1739159732424,0.19064949,2627.6,2626.8,2.17178627]
[1739159732628,3.80606,2627.4,2626.8,2.17178627]
[1739159732942,5.3263939,2627.7,2627.1,2.17178627]
[1739159733141,1.5207639,2627.7,2627.1,2.17178627]
[1739159733353,3.8056,2627.8,2627.2,0.7855]
[1739159733550,0.7571,2628.0,2627.2,0.7855]
[1739159733551,4.5623,2628.0,2627.4,2.17178627]
[1739159733885,3.80508,2628.1,2627.4,2.17178627]
[1739159734066,3.80505,2628.1,2627.4,2.17178627]
[1739159734405,0.76115135,2628.3,2628.0,2.17178627]
[1739159734589,3.80504,2628.1,2627.8,0.7855]
[1739159734750,0.7571,2628.0,2627.4,2.17178627]
[1739159735096,3.80575,2627.6,2627.4,2.17178627]
[1739159735271,0.7571,2628.0,2627.4,2.17178627]
[1739159735597,4.56591135,2628.3,2627.7,2.17178627]
[1739159735790,0.76115135,2628.3,2627.7,2.17178627]
[1739159736081,3.80534,2627.9,2627.4,2.17178627]
[1739159736736,3.80518,2628.0,2627.4,2.17178627]
[1739159736947,0.76115135,2628.3,2627.1,2.95728627]
[1739159736948,3.80622,2627.3,2627.1,2.95728627]
[1739159737142,3.80622,2627.3,2626.8,2.17178627]
[1739159737661,3.80665,2627.0,2626.8,2.17178627]
[1739159737835,3.0,2627.8,2626.8,2.17178627]
[1739159737836,3.80607,2627.4,2626.8,2.17178627]
[1739159738039,1.50363679,2627.5,2626.8,2.17178627]
[1739159738251,3.8065,2627.1,2626.8,2.17178627]
[1739159738448,4.50363679,2627.5,2626.5,2.17178627]
[1739159738648,3.80633,2627.2,2626.2,2.17178627]
[1739159738977,3.80714,2626.7,2626.2,2.17178627]
[1739159739343,3.80679,2626.9,2626.2,2.17178627]
[1739159739683,3.80732,2626.6,2626.2,2.17178627]
[1739159739907,3.80618,2627.3,2626.2,2.17178627]
[1739159739908,0.75374643,2626.9,2626.2,2.17178627]
[1739159740209,3.80783,2626.2,2625.9,2.17178627]
[1739159740398,3.80807,2626.0,2625.7,0.7707]
[1739159740557,3.80771,2626.3,2625.9,2.17178627]
[1739159740760,3.80778,2626.2,2625.9,2.17178627]
[1739159740998,3.80794,2626.1,2625.9,2.17178627]
[1739159741304,3.80807,2626.0,2625.6,2.17178627]
[1739159741511,3.80849,2625.8,2625.6,2.17178627]
[1739159741664,3.8085,2625.7,2625.6,2.17178627]
[1739159742010,3.80824,2625.9,2625.6,2.17178627]
[1739159742215,3.80836,2625.8,2625.6,2.17178627]
[1739159742414,3.8085,2625.7,2625.6,2.17178627]
[1739159742916,3.8078,2626.2,2625.6,2.17178627]
[1739159743131,0.7505,2626.7,2625.9,2.17178627]
[1739159743132,3.8072,2626.6,2625.9,2.17178627]
[1739159743266,3.8072,2626.6,2626.2,2.17178627]
[1739159743610,0.7995,2627.0,2626.5,2.17178627]
[1739159743806,3.80649,2627.1,2626.5,2.17178627]
[1739159743989,3.80666,2627.0,2626.5,2.17178627]
[1739159744179,3.80589,2627.5,2626.8,2.17178627]
[1739159744379,3.80604,2627.4,2626.8,2.17178627]
[1739159744679,0.75097788,2627.5,2626.8,2.17178627]
[1739159744884,3.80604,2627.4,2626.8,2.17178627]
[1739159745782,5.11866702,2627.6,2627.1,2.17178627]
[1739159745783,1.31290702,2627.6,2627.1,2.17178627]
[1739159746077,1.31290702,2627.6,2627.4,2.17178627]
[1739159748015,1.31290702,2627.6,2627.1,2.17178627]
[1739159748016,3.80589,2627.5,2627.1,2.17178627]
[1739159748210,0.7995,2627.2,2626.8,2.17178627]
[1739159748469,3.80702,2626.8,2626.5,2.17178627]
[1739159748669,0.7995,2627.2,2626.2,2.17178627]
[1739159748670,3.7995,2627.2,2626.2,2.17178627]
[1739159748920,3.80763,2626.3,2626.2,2.17178627]
[1739159749087,3.80739,2626.5,2626.2,2.17178627]
[1739159749292,3.80749,2626.4,2626.2,2.17178627]
[1739159749471,3.80739,2626.5,2626.2,2.17178627]
[1739159749669,3.80683,2626.9,2626.2,5.97945627]
[1739159749985,3.80683,2626.9,2626.5,2.17178627]
[1739159750183,0.7995,2627.2,2626.5,2.17178627]
[1739159750382,3.8069,2626.9,2626.5,2.17178627]
[1739159751172,3.8065,2627.1,2626.6,0.8069]
[1739159751389,3.8062,2627.3,2626.6,0.8069]
[1739159751597,0.7995,2627.5,2626.8,2.17178627]
[1739159751899,3.80633,2627.2,2626.8,2.17178627]
[1739159752473,3.80663,2627.0,2626.8,2.17178627]
[1739159753219,3.80611,2627.4,2626.8,2.17178627]
[1739159753427,3.80594,2627.5,2627.1,2.17178627]
[1739159753720,1.31290702,2627.6,2627.1,5.97817627]
[1739159753920,1.31290702,2627.6,2627.1,2.17178627]
[1739159754121,1.31290702,2627.6,2627.4,2.17178627]
[1739159754494,1.31290702,2627.6,2627.1,2.17178627]
[1739159754696,5.11865702,2627.6,2627.1,2.17178627]
[1739159755292,1.31290702,2627.6,2627.3,3.80617]
[1739159755498,1.31290702,2627.6,2627.4,2.17178627]
[1739159755933,0.7995,2628.2,2627.5,3.80578]
[1739159756233,0.7995,2628.2,2627.7,2.17178627]
[1739159756439,4.6044,2628.2,2627.7,2.17178627]
[1739159756643,3.80506,2628.1,2627.7,2.17178627]
[1739159756962,4.60439,2628.2,2627.7,2.17178627]
[1739159757292,3.80455,2628.5,2628.0,2.17178627]
[1739159757836,3.8046,2628.4,2628.0,2.17178627]
[1739159758224,7.6086,2628.6,2627.7,2.17178627]
[1739159758395,3.80546,2627.8,2627.7,2.17178627]
[1739159759025,3.80521,2628.0,2627.7,2.17178627]
[1739159759430,3.80543,2627.9,2627.7,2.17178627]
[1739159759629,3.80546,2627.8,2627.7,2.17178627]
[1739159760302,3.80521,2628.0,2627.7,2.17178627]
[1739159760778,3.80546,2627.8,2627.7,2.17178627]
[1739159760917,3.80521,2628.0,2627.7,2.17178627]
[1739159761112,3.80532,2627.9,2627.7,2.17178627]
[1739159761643,3.80523,2628.0,2627.7,2.17178627]